bitfinex/quotes_ETHUSD_20251218
["timestamp","ask_amount","ask_price","bid_price","bid_amount"]
[1766066233021,2.3734,2975.3,2974.3,0.001]
[1766066233210,2.3734,2975.7,2974.4,0.588]
[1766066233412,2.9614,2976.2,2974.6,7.1383]
[1766066233637,2.3734,2976.1,2974.8,7.1383]
[1766066233836,7.6888,2976.0,2974.9,0.588]
[1766066234158,2.3734,2975.9,2974.9,0.588]
[1766066234505,9.094118,2975.9,2974.9,0.588]
[1766066234867,0.588,2976.5,2974.9,0.588]
[1766066234868,9.09292694,2976.4,2974.9,7.74308208]
[1766066235017,7.6888,2977.0,2975.4,7.1383]
[1766066235214,10.0622,2977.0,2975.6,7.1383]
[1766066235440,0.588,2977.1,2975.8,7.1383]
[1766066235745,2.9614,2977.1,2975.9,0.588]
[1766066235918,2.3734,2976.8,2975.8,0.588]
[1766066236312,3.35908632,2977.0,2975.8,0.588]
[1766066236508,2.3734,2977.2,2975.9,8.01250612]
[1766066236509,3.35890133,2977.2,2975.9,8.01250612]
[1766066236713,3.35854517,2977.5,2976.1,7.1383]
[1766066237064,3.35744315,2978.5,2976.1,7.1383]
[1766066237065,6.71613376,2978.8,2977.4,0.4212]
[1766066237263,7.6888,2978.7,2977.5,0.588]
[1766066237407,7.6888,2978.7,2977.5,0.60470869]
[1766066237408,2.3734,2978.6,2977.5,0.60470869]
[1766066237608,10.0622,2978.6,2977.5,0.588]
[1766066237844,10.0622,2978.6,2977.1,0.10157612]
[1766066238045,2.3734,2978.6,2977.1,0.10157612]
[1766066238218,0.588,2978.7,2977.1,0.10157612]
[1766066238416,10.0622,2978.4,2977.1,0.10157612]
[1766066238620,2.3734,2978.4,2977.2,0.01671828]
[1766066238842,2.3734,2978.4,2977.3,0.10157612]
[1766066239024,0.588,2978.5,2977.5,0.10157612]
[1766066239511,10.6502,2978.5,2977.5,0.10157612]
[1766066239907,0.04196884,2978.4,2977.1,0.10157612]
[1766066240147,0.04196884,2978.4,2977.5,0.10157612]
[1766066240345,11.0462629,2978.5,2977.2,0.10157612]
[1766066240647,6.71448334,2978.7,2977.3,0.405504]
[1766066240847,0.62996602,2978.6,2977.2,0.10157612]
[1766066241056,7.6888,2978.1,2977.5,0.15]
[1766066241368,0.588,2978.0,2976.7,0.10157612]
[1766066241513,10.0622,2977.8,2976.3,0.52277612]
[1766066241708,2.3734,2977.8,2976.3,0.10157612]
[1766066242079,7.45519968,2978.8,2976.3,0.10157612]
[1766066242080,0.002,2978.8,2977.8,0.5712]
[1766066242379,9.49910809,2979.4,2977.7,0.03358296]
[1766066242716,7.12570809,2979.4,2978.0,0.10157612]
[1766066242873,108.87336896,2979.5,2978.3,0.405504]
[1766066243366,108.87336896,2979.5,2978.8,0.405504]
[1766066243538,77.76504175,2979.6,2979.1,0.10157612]
[1766066244284,15.56128328,2979.9,2978.7,0.563]
[1766066244572,15.56128328,2979.9,2978.9,30.0]
[1766066244772,0.002,2979.6,2978.2,0.563]
[1766066244974,0.002,2979.6,2978.2,30.0]
[1766066245190,0.002,2979.6,2978.3,0.405504]
[1766066245339,0.002,2979.6,2978.4,0.03357507]
[1766066245542,0.002,2979.6,2978.5,30.0]
[1766066245735,0.002,2979.6,2978.7,16.093]
[1766066246058,15.56128328,2979.9,2978.8,0.561]
[1766066246260,20.8422739,2980.2,2979.2,0.551]
[1766066246478,3.94246647,2981.1,2979.4,0.56595635]
[1766066246636,57.42629233,2981.6,2979.4,0.56595635]
[1766066246637,21.21916403,2981.2,2979.5,19.932]
[1766066246835,50.01930582,2982.2,2981.1,30.0]
[1766066247051,50.01930582,2982.2,2980.7,3.143]
[1766066247273,50.01930582,2982.2,2981.3,17.094]
[1766066247487,50.01930582,2982.2,2981.3,24.862]
[1766066247641,50.01930582,2982.2,2981.3,30.0]
[1766066247841,50.01930582,2982.2,2981.3,29.72]
[1766066248174,50.01930582,2982.2,2981.4,0.10157612]
[1766066248340,50.01930582,2982.2,2981.5,0.588]
[1766066248538,50.01930582,2982.2,2981.8,30.0]
[1766066248766,50.01930582,2982.2,2981.6,0.10157612]
[1766066249135,36.38189465,2983.3,2980.6,0.46438023]
[1766066249136,3.35206477,2982.6,2980.6,0.46438023]
[1766066249474,7.6888,2982.4,2981.2,0.10157612]
[1766066249642,0.587,2982.3,2981.2,0.10157612]
[1766066250089,0.02527703,2982.2,2980.7,0.10157612]
[1766066250336,0.02527703,2982.2,2980.5,0.03355141]
[1766066250337,3.35379146,2981.7,2980.5,0.03355141]
[1766066250551,3.35379146,2981.7,2980.1,14.977]
[1766066250552,0.587,2981.6,2980.1,14.977]
[1766066250841,0.587,2981.6,2978.9,10.0]
[1766066250842,8.52985694,2981.6,2978.9,10.0]
[1766066250990,2.3734,2980.9,2979.0,1.11173373]
[1766066251190,10.0622,2980.4,2979.0,0.10157612]
[1766066251393,0.61227703,2980.3,2978.5,0.10157612]
[1766066251602,0.587,2980.2,2978.5,0.10157612]
[1766066251810,0.10157612,2981.4,2978.5,0.10157612]
[1766066251811,7.6888,2981.6,2979.4,0.10157612]
[1766066251996,7.6888,2981.4,2979.0,1.3]
[1766066252194,1.05138023,2981.5,2979.0,1.3]
[1766066252500,8.15318023,2981.2,2978.6,0.10157612]
[1766066252716,7.6888,2981.0,2978.7,8.573]
[1766066253012,7.6888,2980.8,2978.9,1.3]
[1766066253187,7.6888,2980.8,2978.6,0.10157612]
[1766066253390,7.6888,2980.6,2978.7,14.023]
[1766066253729,7.6888,2980.2,2977.9,0.001]
[1766066253901,2.3734,2979.7,2977.9,0.001]
[1766066254110,2.3734,2979.1,2977.9,0.001]
[1766066254301,13.41946068,2978.7,2977.9,0.001]
[1766066254502,0.589,2978.6,2977.9,0.001]
[1766066254704,7.6888,2978.5,2977.9,0.001]
[1766066255197,2.3734,2978.2,2976.7,0.001]
[1766066255423,0.589,2978.1,2976.7,0.001]
[1766066255622,6.71452136,2978.7,2976.9,1.3]
[1766066255808,7.6888,2978.5,2977.0,2.0049]
[1766066256131,2.3734,2978.2,2976.7,0.001]
[1766066256331,10.0622,2977.8,2976.7,0.001]
[1766066256546,3.35726068,2978.7,2976.7,0.001]
[1766066256547,8.2778,2977.7,2976.7,0.001]
[1766066256694,0.589,2977.6,2976.7,0.001]
[1766066257091,2.6512,2977.7,2976.7,0.001]
[1766066257316,0.59,2977.5,2976.7,0.001]
[1766066257933,0.02527703,2978.6,2976.7,0.001]
[1766066258198,2.9634,2978.5,2976.7,0.001]
[1766066258540,2.3734,2978.3,2976.7,0.001]
[1766066258914,2.3734,2978.3,2976.7,0.03459424]
[1766066259114,2.3734,2978.3,2976.7,0.001]
[1766066259313,0.59,2978.2,2976.7,0.74229]
[1766066259532,2.9634,2978.2,2976.8,6.021]
[1766066259841,2.3734,2978.0,2976.7,0.74229]
[1766066260398,10.0622,2978.0,2976.8,0.03359312]
[1766066260645,10.0622,2978.0,2976.7,0.74229]
[1766066260803,10.0622,2977.9,2976.8,0.815419]
[1766066261004,10.0622,2977.9,2976.7,0.001]
[1766066261315,0.59,2977.8,2976.7,0.001]
[1766066262111,3.35777531,2978.2,2976.8,7.51247612]
[1766066262313,0.59,2978.1,2976.8,0.10157612]
[1766066262555,3.35795836,2978.0,2976.8,0.10157612]
[1766066262812,3.35795836,2978.0,2976.7,1.301]
[1766066262813,7.7034,2977.9,2976.7,1.301]
[1766066262976,2.5297,2977.2,2975.5,0.001]
[1766066263122,2.5297,2976.8,2975.5,0.001]
[1766066263324,0.59,2976.7,2975.5,7.9552]
[1766066263561,0.59,2977.0,2975.7,30.0]
[1766066263726,0.59,2977.0,2975.8,8.05577612]
[1766066264057,3.1197,2977.0,2975.8,8.05577612]
[1766066264260,3.1197,2977.0,2975.6,0.89709612]
[1766066264461,3.35965059,2976.5,2975.5,0.001]
[1766066264764,3.1197,2976.8,2975.5,0.001]
[1766066264948,2.5297,2976.6,2975.5,0.001]
[1766066265150,7.7034,2976.6,2975.5,0.001]
[1766066265372,2.5297,2976.5,2975.5,0.001]
[1766066265575,0.591,2976.4,2975.5,0.03460779]
[1766066265774,0.591,2976.5,2975.6,0.79888078]
[1766066267993,0.591,2976.5,2975.5,0.001]
[1766066268972,2.5297,2976.3,2975.5,0.001]
[1766066269287,0.59,2976.3,2975.5,0.001]
[1766066269487,0.59,2976.3,2975.5,7.9552]
[1766066270159,5.88903221,2976.8,2975.5,7.9552]
[1766066270389,5.88903221,2976.8,2975.6,0.79552]
[1766066271275,10.2331,2976.5,2975.6,0.79552]
[1766066271587,0.59,2976.4,2975.5,0.001]
[1766066272005,7.7034,2976.0,2974.6,0.001]
[1766066272152,7.7034,2975.4,2974.6,0.001]
[1766066272352,10.2331,2975.1,2973.6,7.5329]
[1766066272551,0.589,2975.0,2973.6,17.5349]
[1766066272770,0.589,2975.0,2974.0,7.5329]
[1766066273007,3.1187,2975.0,2973.6,13.82930732]
[1766066273224,2.5297,2974.7,2973.5,0.10257612]
[1766066273527,10.2331,2974.7,2973.5,0.10257612]
[1766066273730,3.1187,2975.0,2973.6,0.03362927]
[1766066273891,2.5297,2974.8,2973.5,0.86622373]
[1766066274224,7.7034,2974.8,2973.5,0.86622373]
[1766066274815,7.7034,2974.8,2973.5,0.89985413]
[1766066275017,0.589,2974.9,2973.7,7.5329]
[1766066275190,7.7034,2974.8,2973.8,2.38177]
[1766066275391,7.7034,2974.8,2973.5,0.86622373]
[1766066275606,7.7034,2974.8,2973.5,0.10257612]
[1766066275799,7.7034,2974.8,2973.5,0.001]
[1766066275990,2.5297,2974.7,2973.5,0.001]
[1766066276400,2.5297,2974.7,2974.3,0.001]
[1766066276619,7.7034,2974.6,2973.5,0.0346304]
[1766066276952,0.588,2974.5,2973.5,8.33554105]
[1766066277123,0.588,2974.5,2973.5,8.30191065]
[1766066277326,10.2331,2975.0,2973.7,7.5339]
[1766066277633,10.2331,2975.0,2973.5,8.30571065]
[1766066277937,10.2331,2974.8,2973.5,8.30191065]
[1766066278149,10.2331,2974.8,2973.6,0.83029106]
[1766066278495,2.5297,2974.7,2973.6,0.83029106]
[1766066278995,2.5297,2974.7,2973.1,3.36824503]
[1766066278996,7.7034,2974.6,2973.0,0.001]
[1766066279238,7.7034,2973.6,2971.9,0.001]
[1766066279436,7.7034,2973.3,2971.9,0.001]
[1766066279653,0.61327703,2973.5,2971.9,0.001]
[1766066279654,2.5297,2973.1,2971.9,0.001]
[1766066279812,2.5297,2972.9,2971.9,0.001]
[1766066280009,10.2331,2972.7,2971.9,0.001]
[1766066280415,0.588,2972.8,2971.9,0.001]
[1766066280608,0.588,2972.8,2971.9,0.8299785]
[1766066280941,2.3693,2972.7,2971.9,0.79633]
[1766066281135,2.3693,2972.7,2971.9,0.001]
[1766066281725,0.46438023,2974.2,2971.9,0.001]
[1766066281932,2.3693,2973.4,2971.9,7.2348]
[1766066282131,0.588,2973.3,2971.9,7.2348]
[1766066282328,0.588,2973.3,2972.1,7.2338]
[1766066282532,0.588,2973.3,2972.3,17.2338]
[1766066282729,2.9573,2973.3,2972.2,1.49818]
[1766066282933,3.9512664,2973.3,2971.9,0.001]
[1766066283228,3.9512664,2973.3,2972.0,0.10157612]
[1766066283229,2.3693,2973.0,2972.0,0.10157612]
[1766066283414,2.3693,2973.4,2972.2,0.10157612]
[1766066283741,0.588,2973.3,2972.5,0.10157612]
[1766066283945,10.6548,2973.3,2972.2,0.10157612]
[1766066284168,10.6548,2973.3,2971.9,0.001]
[1766066284169,0.588,2973.3,2971.9,0.001]
[1766066284440,7.6975,2973.2,2971.9,0.001]
[1766066284605,3.36371892,2972.9,2971.9,0.001]
[1766066284805,0.588,2972.8,2971.9,0.001]
[1766066285007,0.588,2972.8,2971.1,0.10257612]
[1766066285008,0.02527703,2972.7,2971.1,0.10257612]
[1766066285215,2.3693,2972.4,2971.1,0.10257612]
[1766066285414,2.3693,2972.2,2971.1,0.001]
[1766066285640,2.3693,2972.0,2971.1,0.73463761]
[1766066285845,2.3693,2972.0,2971.1,0.001]
[1766066286646,0.588,2972.3,2971.3,0.10157612]
[1766066287049,0.588,2972.3,2971.8,0.10157612]
[1766066287341,0.588,2972.3,2971.5,7.33537612]
[1766066287342,2.3693,2973.0,2971.5,7.33537612]
[1766066287529,0.588,2972.9,2971.7,7.33537612]
[1766066287732,0.588,2972.8,2971.8,0.73353761]
[1766066287974,0.588,2972.8,2971.4,0.10157612]
[1766066288178,2.3693,2972.6,2971.4,0.10157612]
[1766066288397,0.588,2972.5,2971.2,7.33537612]
[1766066288904,10.6548,2972.5,2971.2,7.33537612]
[1766066289204,0.02527703,2972.4,2971.2,0.10157612]
[1766066289383,7.6975,2972.1,2971.2,1.02041522]
[1766066289725,0.588,2972.0,2971.3,0.0336553]
[1766066289995,0.588,2972.0,2971.1,0.001]
[1766066290196,2.3693,2971.7,2971.1,0.001]
[1766066290791,2.3693,2971.6,2971.1,0.001]
[1766066290964,0.589,2971.5,2971.1,0.001]
[1766066291157,2.3693,2972.0,2971.4,0.001]
[1766066291359,0.589,2971.7,2971.4,0.001]
[1766066291571,0.589,2972.0,2971.4,0.001]
[1766066292785,7.7744,2972.7,2971.4,0.001]
[1766066292786,0.589,2972.4,2971.4,0.001]
[1766066292987,0.589,2972.4,2971.4,6.7811]
[1766066293300,0.589,2972.4,2971.5,0.67811]
[1766066293503,0.589,2972.4,2971.4,0.001]
[1766066293678,0.589,2972.4,2971.4,6.7811]
[1766066293873,0.589,2972.4,2971.4,0.001]
[1766066294907,2.4826,2972.1,2971.4,0.001]
[1766066295112,10.257,2972.1,2971.4,0.001]
[1766066295332,7.7744,2972.1,2971.4,0.001]
[1766066295476,2.4826,2972.0,2971.4,0.001]
[1766066295677,0.589,2971.9,2971.4,0.001]
[1766066296185,0.589,2971.9,2969.8,0.001]
[1766066296186,2.4826,2971.3,2969.8,0.001]
[1766066298683,3.39083648,2970.6,2969.9,0.001]
[1766066299015,7.7744,2970.3,2969.5,0.001]
[1766066299221,0.589,2970.2,2969.5,0.001]
[1766066300291,10.257,2970.1,2969.5,0.001]
[1766066300725,3.36711673,2969.9,2969.0,0.001]
[1766066300924,2.4826,2969.7,2969.0,0.001]
[1766066301233,2.4826,2969.1,2968.5,0.001]
[1766066301729,2.4826,2969.2,2968.5,0.001]
[1766066301889,2.50707703,2969.2,2968.5,0.001]
[1766066302091,7.7744,2969.3,2968.5,0.001]
[1766066302403,10.257,2968.8,2967.4,0.6]
[1766066302591,3.0716,2968.7,2967.4,0.6]
[1766066302792,10.257,2968.5,2967.4,0.6]
[1766066303027,2.4826,2968.2,2967.4,0.6]
[1766066303189,0.61347703,2968.1,2967.4,0.6]
[1766066303389,0.589,2968.1,2967.4,0.6]
[1766066303596,7.7744,2968.0,2967.4,0.6]
[1766066303901,10.28147703,2967.9,2967.4,0.6]
[1766066304088,10.257,2967.8,2967.1,0.6]
[1766066304289,2.4826,2967.7,2967.1,0.6]
[1766066304620,3.0716,2967.6,2967.1,0.6]
[1766066304822,3.0716,2967.6,2966.1,0.001]
[1766066304823,7.7744,2967.4,2966.1,0.001]
[1766066305219,7.32851083,2967.6,2966.1,0.001]
[1766066305220,2.4826,2967.2,2966.1,0.001]
[1766066305422,2.4826,2967.8,2966.2,7.7183]
[1766066305595,8.3634,2967.7,2966.2,7.7183]
[1766066305795,2.4826,2967.6,2966.2,7.7183]
[1766066306027,8.3634,2967.7,2966.2,7.7153]
[1766066306028,10.257,2967.5,2966.2,7.7153]
[1766066306195,2.4826,2967.4,2966.2,8.48693]
[1766066306706,7.79887703,2967.3,2966.2,0.77163]
[1766066306907,2.4826,2967.0,2966.1,0.001]
[1766066307148,2.4826,2966.7,2966.2,0.001]
[1766066307455,2.4826,2967.4,2966.2,0.001]
[1766066307622,0.589,2967.3,2966.4,7.7153]
[1766066307961,2.4826,2967.9,2966.5,30.0]
[1766066308134,3.0716,2967.9,2966.7,7.3971]
[1766066308339,0.589,2967.9,2966.7,7.3971]
[1766066308641,3.0716,2967.9,2966.7,7.3971]
[1766066308847,0.589,2967.9,2966.6,0.003]
[1766066309052,10.257,2968.2,2966.8,7.4001]
[1766066309236,0.589,2967.8,2966.9,0.74001]
[1766066309748,2.4846,2968.5,2967.1,7.3971]
[1766066309935,0.589,2968.4,2967.3,7.3971]
[1766066310141,3.0716,2968.4,2966.9,7.9861]
[1766066310445,0.591,2968.5,2967.3,7.4001]
[1766066310951,2.4826,2968.1,2966.3,7.3971]
[1766066311244,10.257,2967.8,2966.4,0.73981]
[1766066311458,3.09607703,2967.7,2966.4,0.73981]
[1766066311943,10.87047703,2967.7,2966.4,0.73981]
[1766066312159,10.846,2967.7,2966.4,0.73981]
[1766066312357,2.4826,2967.6,2966.4,0.73981]
[1766066312520,0.589,2967.7,2966.5,7.4001]
[1766066312721,3.0716,2967.7,2966.5,7.3971]
[1766066312926,10.257,2967.6,2966.4,0.73981]
[1766066313146,0.589,2967.7,2966.2,0.001]
[1766066313147,10.257,2967.4,2966.2,0.001]
[1766066313349,3.95863207,2967.7,2966.2,0.001]
[1766066313535,2.4826,2967.5,2966.2,0.001]
[1766066314046,2.4826,2967.2,2966.2,0.001]
[1766066314257,0.589,2967.1,2966.2,0.74091]
[1766066314464,2.50707703,2967.0,2966.2,0.74091]
[1766066314635,2.4826,2966.9,2966.2,0.001]
[1766066315050,0.02447703,2966.8,2966.2,0.001]
[1766066315251,2.4826,2966.8,2966.1,0.001]
[1766066315563,8.3634,2966.7,2965.9,0.001]
[1766066315868,2.4826,2966.5,2965.0,0.001]
[1766066316044,0.589,2966.6,2965.0,0.001]
[1766066316045,6.42212208,2966.2,2965.0,0.001]
[1766066316236,0.589,2966.1,2965.0,0.001]
[1766066316669,8.99141106,2968.4,2965.5,7.7153]
[1766066316963,2.4826,2968.0,2965.7,7.7153]
[1766066317172,2.94698023,2967.8,2965.8,0.94256373]
[1766066317358,2.4826,2967.6,2965.8,0.94256373]
[1766066317553,2.4826,2967.4,2965.8,0.84098761]
[1766066317752,0.46438023,2968.0,2965.8,0.84098761]
[1766066317753,2.4826,2967.2,2965.8,0.84098761]
[1766066317992,2.4826,2967.0,2965.8,0.84098761]
[1766066318156,2.4826,2967.0,2965.7,7.81687612]
[1766066318157,10.257,2966.7,2965.9,0.86578637]
[1766066318360,0.61347703,2966.6,2965.7,0.10157612]
[1766066318664,3.09607703,2966.6,2965.7,0.10157612]
[1766066318871,7.7744,2966.5,2965.7,0.10157612]
[1766066319040,0.02447703,2966.4,2965.7,0.10157612]
[1766066319455,3.0676,2966.6,2965.7,0.10157612]
[1766066319973,10.842,2966.6,2965.4,0.10157612]
[1766066320142,2.4826,2966.5,2965.5,0.78168761]
[1766066320472,7.7744,2968.4,2966.8,7.7193]
[1766066320680,2.4826,2968.2,2966.8,7.7193]
[1766066320885,2.4826,2968.0,2966.9,0.77193]
[1766066321035,10.257,2968.0,2966.9,0.77193]
[1766066321237,10.87047703,2967.9,2966.9,0.77193]
[1766066321474,0.589,2967.9,2966.8,7.7153]
[1766066321983,2.4826,2967.7,2966.5,0.10157612]
[1766066322160,0.002,2967.0,2966.5,0.10157612]
[1766066322483,0.002,2967.0,2966.3,7.7153]
[1766066322688,0.002,2967.0,2966.4,0.77153]
[1766066323255,0.002,2967.0,2966.2,0.589]
[1766066323589,0.0012,2967.0,2966.2,0.589]
[1766066323807,0.0012,2967.0,2965.8,7.9687]
[1766066324093,0.0012,2967.0,2965.9,7.9637]
[1766066324387,0.02567703,2967.0,2966.0,7.9677]
[1766066324595,0.0012,2967.0,2966.1,0.79677]
[1766066325293,0.0012,2967.0,2966.2,8.5527]
[1766066325450,0.589,2967.4,2966.2,8.5567]
[1766066326086,0.61347703,2967.4,2966.2,8.5567]
[1766066326470,3.099,2967.6,2966.2,8.5567]
[1766066326673,0.589,2967.6,2966.4,7.9665]
[1766066327482,13.82677801,2967.6,2966.4,7.9637]
[1766066327691,7.358,2967.5,2966.3,1.27248703]
[1766066327851,7.358,2967.5,2966.1,1.38577]
[1766066328052,7.358,2967.4,2966.1,1.38577]
[1766066328395,2.51,2967.3,2966.1,0.79677]
[1766066328565,2.51,2967.2,2966.1,0.589]
[1766066330271,2.51,2967.2,2966.1,8.5527]
[1766066330605,2.48161333,2967.2,2966.1,8.5527]
[1766066331105,2.48361333,2967.2,2966.1,8.5527]
[1766066331307,0.002,2967.2,2966.3,7.9637]
[1766066331470,0.002,2967.2,2966.4,0.79949]
[1766066331866,0.002,2967.2,2966.2,0.589]
[1766066333069,0.002,2967.2,2966.2,8.5527]
[1766066333776,0.002,2967.2,2966.2,8.5839]
[1766066334495,0.002,2967.2,2965.8,0.001]
[1766066334496,2.51,2967.0,2965.8,0.001]
[1766066334806,2.51,2966.9,2965.8,0.001]
[1766066335107,2.51,2966.9,2965.9,0.85537]
[1766066335306,2.51,2966.7,2965.8,0.001]
[1766066335481,3.099,2966.6,2965.8,0.001]
[1766066336013,2.51,2966.5,2965.8,0.001]
[1766066336599,0.02447703,2966.4,2965.8,0.001]
[1766066337117,10.457,2966.6,2965.8,0.001]
[1766066337287,2.51,2966.5,2965.8,0.001]
[1766066337489,9.868,2966.5,2965.8,0.001]
[1766066337817,2.51,2966.4,2965.8,0.001]
[1766066337975,0.589,2966.6,2965.8,0.001]
[1766066339412,0.02447703,2966.5,2965.8,0.001]
[1766066339599,9.868,2966.4,2965.8,0.001]
[1766066339804,2.51,2966.3,2965.8,0.001]
[1766066340539,0.61347703,2966.6,2965.8,0.001]
[1766066340713,0.589,2966.6,2965.8,0.001]
[1766066341720,2.3873,2966.3,2965.8,0.001]
[1766066341920,0.002,2967.0,2964.9,0.001]
[1766066341922,0.002,2967.2,2966.1,0.0312]
[1766066342119,0.002,2967.2,2966.1,7.6674]
[1766066342415,10.0425,2967.1,2966.0,0.589]
[1766066343123,0.591,2967.2,2966.1,7.6674]
[1766066343282,0.002,2967.2,2966.2,0.82876]
[1766066343485,0.002,2967.2,2966.2,8.49616]
[1766066343678,0.002,2967.2,2966.3,8.2564]
[1766066343921,0.002,2967.2,2966.3,8.2876]
[1766066344085,0.002,2968.2,2966.3,8.2564]
[1766066344304,0.02647703,2968.2,2966.9,7.6674]
[1766066344510,0.002,2968.2,2967.0,8.2564]
[1766066344842,0.002,2968.2,2967.0,8.2876]
[1766066345137,0.002,2968.2,2967.1,7.6674]
[1766066345644,0.002,2967.2,2967.1,7.6674]
[1766066345852,0.002,2967.2,2967.1,8.49616]
[1766066346007,0.002,2968.2,2967.2,7.6674]
[1766066346403,0.02647703,2968.2,2967.2,7.6674]
[1766066346647,0.02647703,2968.2,2967.3,0.589]
[1766066346648,0.002,2968.2,2967.3,0.589]
[1766066346944,0.002,2968.2,2967.2,7.6674]
[1766066346945,0.02647703,2968.2,2967.2,7.6674]
[1766066347236,0.02647703,2968.2,2967.2,8.520136]
[1766066347434,0.02647703,2968.2,2967.3,0.589]
[1766066347841,0.02647703,2968.2,2967.2,8.520136]
[1766066347842,0.49085726,2968.2,2967.2,8.520136]
[1766066348007,2.3873,2968.1,2967.3,0.589]
[1766066348209,2.85088023,2968.1,2967.3,0.589]
[1766066348447,8.11958023,2968.1,2966.8,7.6674]
[1766066348738,0.02447703,2968.0,2967.1,0.589]
[1766066349149,7.6552,2968.0,2967.1,0.589]
[1766066349439,0.46438023,2968.1,2967.1,0.589]
[1766066350011,7.6552,2967.9,2966.4,0.908516]
[1766066350215,7.6552,2967.9,2966.8,7.6674]
[1766066350216,0.02447703,2967.8,2966.8,7.6674]
[1766066350410,0.589,2967.9,2966.8,7.6994]
[1766066350742,10.0445,2968.2,2966.8,7.6994]
[1766066350919,0.002,2968.2,2967.0,0.405504]
[1766066351119,0.002,2968.2,2967.4,7.6994]
[1766066351339,0.002,2968.2,2967.5,0.76994]
[1766066351549,0.002,2968.2,2967.6,0.589]
[1766066351924,0.002,2968.2,2967.5,0.76994]
[1766066351925,7.6552,2969.1,2967.7,5.3731]
[1766066352162,10.0425,2968.8,2967.5,0.77394]
[1766066352477,0.002,2968.1,2967.5,4.7891]
[1766066352627,0.002,2968.1,2966.4,0.004]
[1766066352965,0.002,2968.1,2966.3,30.0]
[1766066352966,2.3709,2968.1,2967.0,4.7851]
[1766066353265,0.002,2968.1,2967.1,0.588]
[1766066353562,0.002,2968.1,2967.2,0.588]
[1766066354238,2.3689,2968.5,2967.4,0.004]
[1766066354448,2.3689,2968.5,2967.3,4.7851]
[1766066354449,7.9597,2968.7,2967.5,5.26601]
[1766066354630,11.32817826,2968.7,2967.6,0.588]
[1766066354965,7.9597,2968.6,2967.7,0.588]
[1766066355125,7.9597,2968.6,2967.1,4.7831]
[1766066355126,10.3286,2968.6,2967.1,4.7831]
[1766066355328,0.002,2969.3,2967.9,0.46438023]
[1766066355582,0.002,2969.3,2968.4,4.7831]
[1766066355863,0.588,2969.2,2968.4,4.7831]
[1766066356049,0.588,2969.2,2968.4,4.7871]
[1766066357061,0.588,2969.2,2968.3,0.86988423]
[1766066357263,0.588,2969.2,2968.3,4.7831]
[1766066357473,0.588,2969.2,2968.4,5.26181]
[1766066358260,0.588,2969.2,2968.6,4.1951]
[1766066358462,0.002,2969.6,2968.6,4.1951]
[1766066358663,0.46438023,2970.2,2968.9,0.405504]
[1766066358826,7.9597,2970.3,2968.9,2.834604]
[1766066358827,0.588,2970.1,2968.9,2.834604]
[1766066359463,10.3286,2970.0,2968.9,2.4291]
[1766066359768,10.3286,2970.0,2968.3,0.10157612]
[1766066359769,10.3286,2969.8,2968.5,2.4291]
[1766066359932,2.3689,2969.6,2968.5,2.4291]
[1766066360132,8.5477,2969.5,2969.4,7.55648821]
[1766066360354,0.588,2969.5,2969.2,9.29606917]
[1766066360534,0.588,2969.5,2969.4,7.55654598]
[1766066360733,0.588,2969.5,2969.4,20.01531882]
[1766066360987,0.588,2969.5,2969.4,27.57176535]
[1766066361534,0.588,2969.5,2969.4,31.75545365]
[1766066361766,0.588,2969.5,2969.4,38.31851308]
[1766066361968,4.7925,2970.3,2969.4,38.31851308]
[1766066362145,0.588,2970.1,2969.4,38.31851308]
[1766066362341,0.588,2970.1,2969.4,37.78258857]
[1766066362544,0.588,2970.1,2969.4,30.22604726]
[1766066363335,6.6556,2970.1,2969.4,22.66960073]
[1766066364059,0.59,2970.5,2969.5,10.448]
[1766066364232,1.05438023,2970.5,2969.5,10.448]
[1766066364437,0.59,2970.5,2969.5,10.448]
[1766066365073,0.59,2970.5,2969.4,7.5565413]
[1766066365276,0.59,2970.5,2969.4,6.9936413]
[1766066365442,0.59,2970.5,2969.4,4.6185413]
[1766066365643,1.05438023,2970.5,2969.4,1.4760413]
[1766066366087,0.46438023,2970.3,2969.4,1.4760413]
[1766066366573,0.002,2970.5,2969.6,2.5145]
[1766066366774,0.002,2970.5,2969.6,10.448]
[1766066366979,0.002,2970.5,2969.4,1.4760413]
[1766066367179,0.002,2970.5,2969.7,7.9335]
[1766066367387,0.002,2970.5,2969.8,11.24135]
[1766066367985,0.002,2970.1,2969.9,10.448]
[1766066368343,0.002,2970.5,2969.9,10.448]
[1766066368578,0.002,2970.5,2969.5,7.9335]
[1766066368795,0.002,2970.4,2969.4,1.4760413]
[1766066369447,0.002,2970.2,2969.2,7.39902334]
[1766066369683,0.587,2970.1,2969.2,7.39702334]
[1766066370044,0.46438023,2969.9,2969.2,7.39702334]
[1766066370366,0.46438023,2969.9,2968.4,11.6200875]
[1766066371553,0.46438023,2969.9,2968.6,10.448]
[1766066371951,0.587,2969.8,2968.6,10.448]
[1766066372285,6.734687,2969.7,2968.6,10.448]
[1766066372782,6.733887,2969.7,2968.6,10.448]